Body Name,Service Code,Expenditure Category,Payment Date,Transaction Number,Supplier,Net Amount
Barrow Borough Council,Restart Grant,Wholesale And Retail Trade; Repair Of Motor Vehicles And Motorcycles,04-May-21,LRSG_3374,J T Vehicles South Lakes Ltd,"2,667.00"
Barrow Borough Council,Restart Grant,Wholesale And Retail Trade; Repair Of Motor Vehicles And Motorcycles,04-May-21,LRSG_3375, Once upon a Time,"2,667.00"
Barrow Borough Council,Restart Grant,Wholesale And Retail Trade; Repair Of Motor Vehicles And Motorcycles,04-May-21,LRSG_3376,Mind In Furness,"2,667.00"
Barrow Borough Council,Restart Grant,Wholesale And Retail Trade; Repair Of Motor Vehicles And Motorcycles,04-May-21,LRSG_3377,EWB Cotton Ltd,"2,667.00"
Barrow Borough Council,Restart Grant,Wholesale And Retail Trade; Repair Of Motor Vehicles And Motorcycles,04-May-21,LRSG_3378,Business Grant Recipient,"2,667.00"
Barrow Borough Council,Restart Grant,Wholesale And Retail Trade; Repair Of Motor Vehicles And Motorcycles,04-May-21,LRSG_3379,Business Grant Recipient,"2,667.00"
Barrow Borough Council,Restart Grant,"Arts, Entertainment And Recreation",04-May-21,LRSG_3380,Barrow & District Disability Association,"8,000.00"
Barrow Borough Council,Restart Grant,Accommodation And Food Service Activities,04-May-21,LRSG_3381,Business Grant Recipient,"8,000.00"
Barrow Borough Council,Restart Grant,Other Service Activities,04-May-21,LRSG_3382,Bank hair and beauty ,"8,000.00"
Barrow Borough Council,Restart Grant,Accommodation And Food Service Activities,04-May-21,LRSG_3383,Furness Cricket Club,"8,000.00"
Barrow Borough Council,Restart Grant,Accommodation And Food Service Activities,04-May-21,LRSG_3384,The lodge,"8,000.00"
Barrow Borough Council,Restart Grant,"Arts, Entertainment And Recreation",04-May-21,LRSG_3385,Vue Entertainment Ltd ,"18,000.00"
Barrow Borough Council,Restart Grant,Accommodation And Food Service Activities,04-May-21,LRSG_3386,Business Grant Recipient,"8,000.00"
Barrow Borough Council,Restart Grant,Accommodation And Food Service Activities,04-May-21,LRSG_3387,Vantage Leisure LTD,"8,000.00"
Barrow Borough Council,Restart Grant,Accommodation And Food Service Activities,04-May-21,LRSG_3388,Business Grant Recipient,"12,000.00"
Barrow Borough Council,Restart Grant,Wholesale And Retail Trade; Repair Of Motor Vehicles And Motorcycles,04-May-21,LRSG_3389,Business Grant Recipient,"8,000.00"
Barrow Borough Council,Restart Grant,Accommodation And Food Service Activities,04-May-21,LRSG_3390,Business Grant Recipient,"8,000.00"
Barrow Borough Council,Restart Grant,Wholesale And Retail Trade; Repair Of Motor Vehicles And Motorcycles,04-May-21,LRSG_3391,Business Grant Recipient,"8,000.00"
Barrow Borough Council,Restart Grant,Wholesale And Retail Trade; Repair Of Motor Vehicles And Motorcycles,04-May-21,LRSG_3392,Business Grant Recipient,"8,000.00"
Barrow Borough Council,Restart Grant,Wholesale And Retail Trade; Repair Of Motor Vehicles And Motorcycles,05-May-21,LRSG_3393,DEBRA,"2,667.00"
Barrow Borough Council,Restart Grant,Wholesale And Retail Trade; Repair Of Motor Vehicles And Motorcycles,05-May-21,LRSG_3394,Business Grant Recipient,"2,667.00"
Barrow Borough Council,Restart Grant,Wholesale And Retail Trade; Repair Of Motor Vehicles And Motorcycles,05-May-21,LRSG_3395,Game Retail Ltd,"4,000.00"
Barrow Borough Council,Restart Grant,Wholesale And Retail Trade; Repair Of Motor Vehicles And Motorcycles,05-May-21,LRSG_3396,Heaths,"2,667.00"
Barrow Borough Council,Restart Grant,Wholesale And Retail Trade; Repair Of Motor Vehicles And Motorcycles,05-May-21,LRSG_3397,Business Grant Recipient,"2,667.00"
Barrow Borough Council,Restart Grant,Wholesale And Retail Trade; Repair Of Motor Vehicles And Motorcycles,05-May-21,LRSG_3398,Autoimage Cars LTD,"2,667.00"
Barrow Borough Council,Restart Grant,Accommodation And Food Service Activities,05-May-21,LRSG_3399,Railway Inn,"8,000.00"
Barrow Borough Council,Restart Grant,Accommodation And Food Service Activities,05-May-21,LRSG_3400,MAC Barrow Ltd T/A Dhaba Barrow,"8,000.00"
Barrow Borough Council,Restart Grant,Accommodation And Food Service Activities,05-May-21,LRSG_3401,Escape Hotel Barrow ,"12,000.00"
Barrow Borough Council,Restart Grant,Accommodation And Food Service Activities,05-May-21,LRSG_3402,Business Grant Recipient,"8,000.00"
Barrow Borough Council,Restart Grant,"Arts, Entertainment And Recreation",05-May-21,LRSG_3403,Askam United Football Club,"8,000.00"
Barrow Borough Council,Restart Grant,Accommodation And Food Service Activities,05-May-21,LRSG_3404,Business Grant Recipient,"8,000.00"
Barrow Borough Council,Restart Grant,"Arts, Entertainment And Recreation",05-May-21,LRSG_3405,Barrow Celtic Fc,"8,000.00"
Barrow Borough Council,Restart Grant,"Arts, Entertainment And Recreation",05-May-21,LRSG_3406,Barrow Island Community & Sports Trust Facility ,"8,000.00"
Barrow Borough Council,Restart Grant,"Arts, Entertainment And Recreation",05-May-21,LRSG_3407,Coop sports and social Club,"8,000.00"
Barrow Borough Council,Local Restrictions Support Grant (Closed) Addendum: 5 January onwards,Accommodation And Food Service Activities,05-May-21,LRSG_3408,Healeys Bar Ltd,"2,096.00"
Barrow Borough Council,Local Restrictions Support Grant (Closed) Addendum: 5 January onwards,Accommodation And Food Service Activities,05-May-21,LRSG_3409,A.S.H. BAR LIMITED,"3,143.00"
Barrow Borough Council,Local Restrictions Support Grant (Closed) Addendum: 5 January onwards,Accommodation And Food Service Activities,05-May-21,LRSG_3410,Business Grant Recipient,"2,096.00"
Barrow Borough Council,Local Restrictions Support Grant (Closed) Addendum: 5 January onwards,Accommodation And Food Service Activities,05-May-21,LRSG_3411,Business Grant Recipient,"2,096.00"
Barrow Borough Council,Local Restrictions Support Grant (Closed) Addendum: 5 January onwards,"Arts, Entertainment And Recreation",05-May-21,LRSG_3412,Barrow island ARLFC,"2,096.00"
Barrow Borough Council,Local Restrictions Support Grant (Closed) Addendum: 5 January onwards,Wholesale And Retail Trade; Repair Of Motor Vehicles And Motorcycles,05-May-21,LRSG_3413,Cancer Research UK,"2,096.00"
Barrow Borough Council,Local Restrictions Support Grant (Closed) Addendum: 5 January onwards,Accommodation And Food Service Activities,05-May-21,LRSG_3414,Business Grant Recipient,"2,096.00"
Barrow Borough Council,Local Restrictions Support Grant (Closed) Addendum: 5 January onwards,Wholesale And Retail Trade; Repair Of Motor Vehicles And Motorcycles,05-May-21,LRSG_3415,TJX UK Ltd,"4,714.00"
Barrow Borough Council,Local Restrictions Support Grant (Closed) Addendum: 5 January onwards,Wholesale And Retail Trade; Repair Of Motor Vehicles And Motorcycles,05-May-21,LRSG_3416,Barrow Rugby League Auxiliary Association,"2,096.00"
Barrow Borough Council,Restart Grant,Accommodation And Food Service Activities,06-May-21,LRSG_3417,Crooklands Casuals Football Club,"8,000.00"
Barrow Borough Council,Restart Grant,"Arts, Entertainment And Recreation",06-May-21,LRSG_3418,Askam rugby club,"8,000.00"
Barrow Borough Council,Restart Grant,"Arts, Entertainment And Recreation",06-May-21,LRSG_3419,Walney Island FC ,"8,000.00"
Barrow Borough Council,Restart Grant,Accommodation And Food Service Activities,06-May-21,LRSG_3420,Business Grant Recipient,"8,000.00"
Barrow Borough Council,Restart Grant,Accommodation And Food Service Activities,06-May-21,LRSG_3421,Business Grant Recipient,"8,000.00"
Barrow Borough Council,Restart Grant,"Arts, Entertainment And Recreation",06-May-21,LRSG_3422,Roose Bowling Club,"8,000.00"
Barrow Borough Council,Restart Grant,"Arts, Entertainment And Recreation",06-May-21,LRSG_3423,Dalton RLFC,"8,000.00"
Barrow Borough Council,Restart Grant,Wholesale And Retail Trade; Repair Of Motor Vehicles And Motorcycles,11-May-21,LRSG_3424,Express Plumbing Supplies Ltd,"4,000.00"
Barrow Borough Council,Restart Grant,Wholesale And Retail Trade; Repair Of Motor Vehicles And Motorcycles,11-May-21,LRSG_3425,Business Grant Recipient,"2,667.00"
Barrow Borough Council,Restart Grant,Wholesale And Retail Trade; Repair Of Motor Vehicles And Motorcycles,11-May-21,LRSG_3426,Business Grant Recipient,"2,667.00"
Barrow Borough Council,Restart Grant,Transportation And Storage,11-May-21,LRSG_3427,Dalton Motor Parts ltd,"2,667.00"
Barrow Borough Council,Restart Grant,Wholesale And Retail Trade; Repair Of Motor Vehicles And Motorcycles,11-May-21,LRSG_3428,Business Grant Recipient,"2,667.00"
Barrow Borough Council,Restart Grant,"Arts, Entertainment And Recreation",11-May-21,LRSG_3429,St Johns Sailing Centre,"12,000.00"
Barrow Borough Council,Restart Grant,"Arts, Entertainment And Recreation",11-May-21,LRSG_3430,Barrow Sea Cadets ,"8,000.00"
Barrow Borough Council,Restart Grant,"Arts, Entertainment And Recreation",11-May-21,LRSG_3431,Walney Park Crown Green Bowling Club,"8,000.00"
Barrow Borough Council,Restart Grant,Other Service Activities,11-May-21,LRSG_3432,Business Grant Recipient,"8,000.00"
Barrow Borough Council,Restart Grant,Accommodation And Food Service Activities,11-May-21,LRSG_3433,Hawcoat Park Ltd,"12,000.00"
Barrow Borough Council,Restart Grant,Accommodation And Food Service Activities,11-May-21,LRSG_3434,Business Grant Recipient,"8,000.00"
Barrow Borough Council,Restart Grant,Wholesale And Retail Trade; Repair Of Motor Vehicles And Motorcycles,12-May-21,LRSG_3435,The Bobby Pin,"8,000.00"
Barrow Borough Council,Local Restrictions Support Grant (Closed) Addendum: 5 January onwards,Other Service Activities,12-May-21,LRSG_3436,Business Grant Recipient,"2,096.00"
Barrow Borough Council,Restart Grant,Wholesale And Retail Trade; Repair Of Motor Vehicles And Motorcycles,13-May-21,LRSG_3437,Max Spielmann Ltd,"4,000.00"
Barrow Borough Council,Restart Grant,Wholesale And Retail Trade; Repair Of Motor Vehicles And Motorcycles,13-May-21,LRSG_3438,Fox outside catering ,"2,667.00"
Barrow Borough Council,Restart Grant,"Arts, Entertainment And Recreation",13-May-21,LRSG_3439,Brightwork Media Ltd now Ben Ravetta Creative,"2,667.00"
Barrow Borough Council,Restart Grant,Accommodation And Food Service Activities,13-May-21,LRSG_3440,Business Grant Recipient,"18,000.00"
Barrow Borough Council,Restart Grant,Wholesale And Retail Trade; Repair Of Motor Vehicles And Motorcycles,13-May-21,LRSG_3441,Business Grant Recipient,"8,000.00"
Barrow Borough Council,Restart Grant,"Arts, Entertainment And Recreation",13-May-21,LRSG_3442,St Matthews Community Halls,"8,000.00"
Barrow Borough Council,Restart Grant,Wholesale And Retail Trade; Repair Of Motor Vehicles And Motorcycles,18-May-21,LRSG_3443,The Sofa Group TSG Cumbria,"4,000.00"
Barrow Borough Council,Restart Grant,Accommodation And Food Service Activities,18-May-21,LRSG_3444,Maisonette at the Brown Cow,"8,000.00"
Barrow Borough Council,Restart Grant,Accommodation And Food Service Activities,18-May-21,LRSG_3445,Business Grant Recipient,"8,000.00"
Barrow Borough Council,Restart Grant,Accommodation And Food Service Activities,18-May-21,LRSG_3446,Business Grant Recipient,"8,000.00"
Barrow Borough Council,Restart Grant,Accommodation And Food Service Activities,18-May-21,LRSG_3447,Business Grant Recipient,"8,000.00"
Barrow Borough Council,Restart Grant,Other Service Activities,18-May-21,LRSG_3448,charnleys home & garden ltd,"12,000.00"
Barrow Borough Council,Restart Grant,Wholesale And Retail Trade; Repair Of Motor Vehicles And Motorcycles,18-May-21,LRSG_3449,Business Grant Recipient,"8,000.00"
Barrow Borough Council,Restart Grant,Accommodation And Food Service Activities,18-May-21,LRSG_3450,Barrow Labour Club,"8,000.00"
Barrow Borough Council,Restart Grant,Accommodation And Food Service Activities,18-May-21,LRSG_3451,Vickerstown cricket and tennis club ,"8,000.00"
Barrow Borough Council,Restart Grant,Wholesale And Retail Trade; Repair Of Motor Vehicles And Motorcycles,18-May-21,LRSG_3452,The Works,"8,000.00"
Barrow Borough Council,Restart Grant,Wholesale And Retail Trade; Repair Of Motor Vehicles And Motorcycles,18-May-21,LRSG_3453,Business Grant Recipient,"8,000.00"
Barrow Borough Council,Restart Grant,Wholesale And Retail Trade; Repair Of Motor Vehicles And Motorcycles,18-May-21,LRSG_3454,Fox outside catering ,"5,333.00"
Barrow Borough Council,Local Restrictions Support Grant (Closed) Addendum: 5 January onwards,"Arts, Entertainment And Recreation",18-May-21,LRSG_3455,Brightwork Media Ltd now Ben Ravetta Creative,"2,096.00"
Barrow Borough Council,Local Restrictions Support Grant (Closed) Addendum: 5 January onwards,Accommodation And Food Service Activities,18-May-21,LRSG_3456,Business Grant Recipient,"2,096.00"
Barrow Borough Council,Local Restrictions Support Grant (Closed) Addendum: 5 January onwards,Accommodation And Food Service Activities,26-May-21,LRSG_3457,Global Propertunities Ltd,"2,096.00"
Barrow Borough Council,Restart Grant,Wholesale And Retail Trade; Repair Of Motor Vehicles And Motorcycles,26-May-21,LRSG_3458,Esquire Retail Ltd,"6,000.00"
Barrow Borough Council,Restart Grant,Wholesale And Retail Trade; Repair Of Motor Vehicles And Motorcycles,26-May-21,LRSG_3459,Alan Kell Plumbing & Heating Engineers Ltd,"2,667.00"
Barrow Borough Council,Restart Grant,Wholesale And Retail Trade; Repair Of Motor Vehicles And Motorcycles,26-May-21,LRSG_3460,Business Grant Recipient,"2,667.00"
Barrow Borough Council,Restart Grant,Accommodation And Food Service Activities,26-May-21,LRSG_3461,Business Grant Recipient,"8,000.00"
Barrow Borough Council,Restart Grant,Accommodation And Food Service Activities,26-May-21,LRSG_3462,Business Grant Recipient,"8,000.00"
Barrow Borough Council,Restart Grant,Accommodation And Food Service Activities,26-May-21,LRSG_3463,Transfigure Fitness Ltd,"8,000.00"
Barrow Borough Council,Restart Grant,Other Service Activities,26-May-21,LRSG_3464,CancerCare North Lancashire & South Cumbria,"8,000.00"
Barrow Borough Council,Restart Grant,Accommodation And Food Service Activities,26-May-21,LRSG_3465,Golden Ball Dalton Ltd,"12,000.00"
Barrow Borough Council,Restart Grant,Accommodation And Food Service Activities,26-May-21,LRSG_3466,Global Propertunities Ltd,"8,000.00"
Barrow Borough Council,Restart Grant,Accommodation And Food Service Activities,27-May-21,LRSG_3467,Sweet Pepper Caf� Ltd,"8,000.00"
Barrow Borough Council,Restart Grant,Accommodation And Food Service Activities,27-May-21,LRSG_3468,Whitbread Group PLC,"18,000.00"
Barrow Borough Council,Restart Grant,"Arts, Entertainment And Recreation",27-May-21,LRSG_3469,Furness Cavaliers AFC,"8,000.00"
Barrow Borough Council,Restart Grant,"Arts, Entertainment And Recreation",27-May-21,LRSG_3470,Business Grant Recipient,"2,667.00"
